Workbook

Sheet MSU
B1: Teppo Ylikulju | E1: 12.8.1986 Pattijoki
B2: SUPERPESIS | E2: Runkosarja | I2: Kärkilyönnit (KL), pesänvälit | P2: Ylempi loppusarja | W2: Alempi loppusarja | AD2: Arvo-ottelut | AH2: Mitalit
B3: Vuosi | C3: Sija | D3: Seura | E3: OTT | F3: KUN | G3: LÖI | H3: TOI | I3: KL | J3: 0 > 1 | K3: 1 > 2 | L3: 2 > 3 | M3: 3 > k | N3: KL-% | P3: OTT | Q3: KUN | R3: LÖI | S3: TOI | T3: KL | U3: KL-% | W3: OTT | X3: KUN | Y3: LÖI | Z3: TOI | AA3: KL | AB3: KL-% | AD3: IL | AE3: LL | AF3: hSM | AG3: K | AH3: H | AI3: P
B4: 2005 | C4: 3. | D4: PattU 2 | F4: suomensarja
B5: 2006 | C5: 2. | D5: PattU 2 | F5: suomensarja
B6: 2007 | C6: 5. | D6: PattU 2 | F6: suomensarja
B7: 2007 | C7: 6. | D7: YK | F7: ykköspesis
B8: 2008 | C8: 6. | D8: PattU 2 | F8: suomensarja
B9: 2008 | C9: 7. | D9: YK | F9: ykköspesis
B10: 2008 | C10: 1. | D10: PattU | E10: 1 | F10: 0 | G10: 0 | H10: 0 | I10: 1 | J10: 0 | K10: 0 | L10: 1 | M10: 0 | N10: 20.0 %
B11: 2009 | C11: 4. | D11: PattU 2 | F11: suomensarja
B12: 2010 | C12: 7. | D12: YK | F12: ykköspesis
B13: 2011 | C13: 10. | D13: YK | F13: ykköspesis
B14: 2012 | C14: 7. | D14: YK | F14: ykköspesis
B15: 2013 | C15: 7. | D15: YK | F15: ykköspesis
B16: 2014 | C16: 9. | D16: YK | F16: ykköspesis
B17: 2015 | C17: 8. | D17: YK | F17: ykköspesis
B18: 2016 | C18: 5. | D18: YK | F18: ykköspesis
B19: 2017 | C19: 2. | D19: Ura | F19: suomensarja
B20: 2018 | C20: 2. | D20: Ura | F20: suomensarja
B21: 2019 | C21: 2. | D21: YK 2 | F21: suomensarja
B22: Yhteensä | E22: 1 | F22: 0 | G22: 0 | H22: 0 | I22: 1 | J22: 0 | K22: 0 | L22: 1 | M22: 0 | N22: 20.0 % | O22: 34.04255319 | P22: 0 | Q22: 0 | R22: 0 | S22: 0 | T22: 0 | U22: 0.0 % | W22: 0 | X22: 0 | Y22: 0 | Z22: 0 | AA22: 0 | AB22: 0.0 % | AD22: 0 | AE22: 0 | AF22: 0 | AG22: 0 | AH22: 0 | AI22: 0
B23: Pesispörssi | D23: 0.7
B25: URA SUPERISSA | E25: OTT | F25: KUN | G25: LÖI | H25: TOI | I25: KL | K25: ka/L | L25: ka/T | M25: ka/KL | N25: KL-% | P25: ENSIMMÄISET RUNKOSARJASSA
B26: Runkosarja | E26: 1 | F26: 0 | G26: 0 | H26: 0 | I26: 1 | K26: 0.00 | L26: 0.00 | M26: 1.00 | N26: 20.0 % | O26: 34.04255319 | P26: Ottelu | R26: 27.07. 2008 SoJy - PattU 0-2 (2-3, 1-6) | Z26: 1. ottelu | AB26: 21 v 11 kk 15 pv
B27: Ylempi loppusarja | P27: Lyöty
B28: Alempi loppusarja | P28: Tuotu
B29: KAIKKI | E29: 1 | F29: 0 | G29: 0 | H29: 0 | I29: 1 | K29: 0.00 | L29: 0.00 | M29: 1.00 | N29: 20.0 % | O29: 34.04255319 | P29: Kunnari
B31: Seurat | D31: PattU = Pattijoen Urheilijat (1928), kasvattajaseura
D32: YK = Ylivieskan Kuula (1909)
D33: Ura = Kannuksen Ura (1969)

Sheet MYP, MSS
B1: Teppo Ylikulju | E1: 12.8.1986 Pattijoki
B2: YKKÖSPESIS | E2: Runkosarja | L2: Runkosarja TOP-10 | Q2: Jatkosarjat | X2: SUOMENSARJA | AA2: Runkosarja | AH2: Runkosarja TOP-10 | AM2: Jatkosarjat
B3: Vuosi | C3: Sija | D3: Seura | E3: OTT | F3: KUN | G3: LÖI | H3: TOI | I3: KL | J3: KL-% | L3: LÖI | M3: TOI | N3: L+T | O3: KL | Q3: OTT | R3: KUN | S3: LÖI | T3: TOI | U3: KL | V3: KL-% | X3: Vuosi | Y3: Sija | Z3: Seura | AA3: OTT | AB3: KUN | AC3: LÖI | AD3: TOI | AE3: KL | AF3: KL-% | AH3: LÖI | AI3: TOI | AJ3: L+T | AK3: KL | AM3: OTT | AN3: KUN | AO3: LÖI | AP3: TOI | AQ3: KL | AR3: KL-%
X4: 2005 | Y4: 3. | Z4: PattU 2 | AA4: 15 | AB4: 0 | AC4: 3 | AD4: 15 | AE4: 53 | AF4: 62.4 % | AG4: 85
X5: 2006 | Y5: 2. | Z5: PattU 2 | AA5: 9 | AB5: 1 | AC5: 4 | AD5: 9 | AE5: 25 | AF5: 46.3 % | AG5: 54 | AM5: 4 | AN5: 0 | AO5: 0 | AP5: 2 | AQ5: 6 | AR5: 31.6 % | AS5: 19
B6: 2007 | C6: 6. | D6: YK | E6: 1 | F6: 0 | G6: 1 | H6: 0 | I6: 2 | J6: 28.6 % | K6: 7 | Q6: 1 | R6: 0 | S6: 0 | T6: 0 | U6: 1 | V6: 20.0 % | W6: 5 | X6: 2007 | Y6: 5. | Z6: PattU 2 | AA6: 14 | AB6: 1 | AC6: 18 | AD6: 10 | AE6: 64 | AF6: 61.5 % | AG6: 104
B7: 2008 | C7: 7. | D7: YK | E7: 3 | F7: 0 | G7: 0 | H7: 0 | I7: 2 | J7: 25.0 % | K7: 8 | X7: 2008 | Y7: 6. | Z7: PattU 2 | AA7: 4 | AB7: 0 | AC7: 2 | AD7: 3 | AE7: 15 | AF7: 48.4 % | AG7: 31
X8: 2009 | Y8: 4. | Z8: PattU 2 | AA8: 9 | AB8: 3 | AC8: 11 | AD8: 8 | AE8: 44 | AF8: 60.3 % | AG8: 73 | AM8: 2 | AN8: 0 | AO8: 2 | AP8: 1 | AQ8: 7 | AR8: 63.6 % | AS8: 11
B9: 2010 | C9: 7. | D9: YK | E9: 21 | F9: 4 | G9: 31 | H9: 14 | I9: 73 | J9: 48.7 % | K9: 150
B10: 2011 | C10: 10. | D10: YK | E10: 19 | F10: 3 | G10: 9 | H10: 5 | I10: 44 | J10: 44.4 % | K10: 99
B11: 2012 | C11: 7. | D11: YK | E11: 22 | F11: 2 | G11: 25 | H11: 8 | I11: 81 | J11: 56.6 % | K11: 143
B12: 2013 | C12: 7. | D12: YK | E12: 22 | F12: 1 | G12: 26 | H12: 10 | I12: 90 | J12: 61.2 % | K12: 147
B13: 2014 | C13: 9. | D13: YK | E13: 21 | F13: 1 | G13: 26 | H13: 6 | I13: 50 | J13: 41.3 % | K13: 121
B14: 2015 | C14: 8. | D14: YK | E14: 21 | F14: 1 | G14: 20 | H14: 3 | I14: 45 | J14: 38.8 % | K14: 116
B15: 2016 | C15: 5. | D15: YK | E15: 23 | F15: 2 | G15: 21 | H15: 9 | I15: 91 | J15: 59.5 % | K15: 153 | Q15: 3 | R15: 0 | S15: 1 | T15: 0 | U15: 8 | V15: 40.0 % | W15: 20
X16: 2017 | Y16: 2. | Z16: Ura | AA16: 13 | AB16: 1 | AC16: 42 | AD16: 11 | AE16: 72 | AF16: 65.5 % | AG16: 110 | AH16: 1. | AJ16: 3. | AM16: 4 | AN16: 0 | AO16: 1 | AP16: 0 | AQ16: 13 | AR16: 38.2 % | AS16: 34
X17: 2018 | Y17: 2. | Z17: Ura | AA17: 14 | AB17: 5 | AC17: 60 | AD17: 13 | AE17: 87 | AF17: 71.9 % | AG17: =PRODUCT(AE17/AF17) -> 121 | AH17: 1. | AJ17: 2. | AK17: 9. | AM17: 8 | AN17: 0 | AO17: 14 | AP17: 0 | AQ17: 33 | AR17: 53.2 % | AS17: =PRODUCT(AQ17/AR17) -> 62.00676437
X18: 2019 | Y18: 2. | Z18: YK 2 | AA18: 3 | AB18: 0 | AC18: 4 | AD18: 0 | AE18: 8 | AF18: 50.0 % | AG18: 16 | AM18: 1 | AN18: 0 | AO18: 2 | AP18: 0 | AQ18: 3 | AR18: 37.5 % | AS18: 8
B19: YHTEENSÄ | E19: =SUM(E4:E18) -> 153 | F19: =SUM(F4:F18) -> 14 | G19: =SUM(G4:G18) -> 159 | H19: =SUM(H4:H18) -> 55 | I19: =SUM(I4:I18) -> 478 | J19: =PRODUCT(I19/K19) -> 50.6 % | K19: =SUM(K4:K18) -> 944 | Q19: =SUM(Q4:Q18) -> 4 | R19: =SUM(R4:R18) -> 0 | S19: =SUM(S4:S18) -> 1 | T19: =SUM(T4:T18) -> 0 | U19: =SUM(U4:U18) -> 9 | V19: =PRODUCT(U19/W19) -> 36.0 % | W19: =SUM(W4:W18) -> 25 | X19: YHTEENSÄ | AA19: =SUM(AA4:AA18) -> 81 | AB19: =SUM(AB4:AB18) -> 11 | AC19: =SUM(AC4:AC18) -> 144 | AD19: =SUM(AD4:AD18) -> 69 | AE19: =SUM(AE4:AE18) -> 368 | AF19: =PRODUCT(AE19/AG19) -> 62.0 % | AG19: =SUM(AG4:AG18) -> 594.0013908 | AM19: =SUM(AM4:AM18) -> 19 | AN19: =SUM(AN4:AN18) -> 0 | AO19: =SUM(AO4:AO18) -> 19 | AP19: =SUM(AP4:AP18) -> 3 | AQ19: =SUM(AQ4:AQ18) -> 62 | AR19: =PRODUCT(AQ19/AS19) -> 46.3 % | AS19: =SUM(AS4:AS18) -> 134.0067644
B21: KAIKKI OTTELUT | E21: OTT | F21: KUN | G21: LÖI | H21: TOI | I21: KL | J21: KL-% | L21: ka/L | M21: ka/T | N21: ka/l+t | O21: ka/kl | R21: Seurat | T21: PattU = Pattijoen Urheilijat (1928), kasvattajaseura
B22: SUPERPESIS | E22: 1 | F22: 0 | G22: 0 | H22: 0 | I22: 1 | J22: 20.0 % | K22: =PRODUCT(I22/J22) -> 5 | L22: =PRODUCT((F22+G22)/E22) -> 0.00 | M22: =PRODUCT(H22/E22) -> 0.00 | N22: =PRODUCT((F22+G22+H22)/E22) -> 0.00 | O22: =PRODUCT(I22/E22) -> 1.00 | T22: YK = Ylivieskan Kuula (1909)
B23: YKKÖSPESIS | E23: =PRODUCT(E19+Q19) -> 157 | F23: =PRODUCT(F19+R19) -> 14 | G23: =PRODUCT(G19+S19) -> 160 | H23: =PRODUCT(H19+T19) -> 55 | I23: =PRODUCT(I19+U19) -> 487 | J23: =PRODUCT(I23/K23) -> 50.3 % | K23: =PRODUCT(K19+W19) -> 969 | L23: =PRODUCT((F23+G23)/E23) -> 1.11 | M23: =PRODUCT(H23/E23) -> 0.35 | N23: =PRODUCT((F23+G23+H23)/E23) -> 1.46 | O23: =PRODUCT(I23/E23) -> 3.10 | T23: Ura = Kannuksen Ura (1969)
B24: SUOMENSARJA | E24: =PRODUCT(AA19+AM19) -> 100 | F24: =PRODUCT(AB19+AN19) -> 11 | G24: =PRODUCT(AC19+AO19) -> 163 | H24: =PRODUCT(AD19+AP19) -> 72 | I24: =PRODUCT(AE19+AQ19) -> 430 | J24: =PRODUCT(I24/K24) -> 59.1 % | K24: =PRODUCT(AG19+AS19) -> 728.0081552 | L24: =PRODUCT((F24+G24)/E24) -> 1.74 | M24: =PRODUCT(H24/E24) -> 0.72 | N24: =PRODUCT((F24+G24+H24)/E24) -> 2.46 | O24: =PRODUCT(I24/E24) -> 4.30
B25: YHTEENSÄ | E25: =SUM(E22:E24) -> 258 | F25: =SUM(F22:F24) -> 25 | G25: 323 | H25: 127 | I25: 918 | J25: =PRODUCT(I25/K25) -> 53.9 % | K25: =SUM(K22:K24) -> 1702.008155 | L25: =PRODUCT((F25+G25)/E25) -> 1.35 | M25: =PRODUCT(H25/E25) -> 0.49 | N25: =PRODUCT((F25+G25+H25)/E25) -> 1.84 | O25: =PRODUCT(I25/E25) -> 3.56
